bitfinex-derivatives/quotes_SOLF0:USTF0_20260115
["timestamp","ask_amount","ask_price","bid_price","bid_amount"]
[1768480963115,16.5968672,144.62,144.57,0.04508625]
[1768480967423,14.45232913,144.62,144.57,0.04508625]
[1768480967626,16.5968672,144.62,144.57,0.04508625]
[1768480973635,16.5968672,144.62,144.57,6.27228625]
[1768480977343,16.5968672,144.62,144.58,6.2267]
[1768480980244,16.5968672,144.62,144.59,6.2263]
[1768480982445,14.45232913,144.62,144.59,6.2263]
[1768480982744,16.5968672,144.62,144.59,6.2263]
[1768480982946,16.5968672,144.62,144.6,6.2258]
[1768480983140,6.72e-05,144.62,144.6,6.2258]
[1768480983543,6.72e-05,144.62,144.57,14.73386693]
[1768480986652,6.72e-05,144.62,144.57,20.96096693]
[1768480987959,9.24387375,144.65,144.57,14.73386693]
[1768480988253,2.14453807,144.63,144.57,14.73386693]
[1768480989254,9.24387375,144.65,144.57,14.73386693]
[1768480989553,8.11937314,144.64,144.57,14.73386693]
[1768480992150,9.55613213,144.65,144.57,14.73386693]
[1768481002962,9.55613213,144.65,144.58,13.87078474]
[1768481003260,9.55613213,144.65,144.6,0.05193496]
[1768481004863,8.352209,144.65,144.6,14.77267453]
[1768481009870,8.352209,144.65,144.6,20.99857453]
[1768481012870,8.352209,144.65,144.61,6.2253]
[1768481013373,91.63510323,144.67,144.61,14.72073957]
[1768481013877,9.95324816,144.66,144.61,14.72073957]
[1768481014776,9.95324816,144.66,144.62,6.225]
[1768481015076,9.95324816,144.66,144.6,0.05193496]
[1768481015871,9.95324816,144.66,144.61,6.2254]
[1768481017879,9.95324816,144.66,144.62,6.2249]
[1768481019077,9.95324816,144.66,144.6,14.77267453]
[1768481019078,9.95324816,144.66,144.63,6.2245]
[1768481019270,9.95324816,144.66,144.63,6.27055374]
[1768481019779,4.816e-05,144.66,144.64,6.2242]
[1768481020775,1.083e-05,144.68,144.65,6.2237]
[1768481021166,81.72,144.7,144.65,6.2237]
[1768481021574,0.44179828,144.69,144.66,0.04721382]
[1768481022279,0.44179828,144.69,144.65,6.2237]
[1768481023571,0.05078714,144.68,144.66,0.05271926]
[1768481023866,0.05078714,144.68,144.65,6.2237]
[1768481024866,0.05078714,144.68,144.65,0.04602448]
[1768481027376,0.05078714,144.68,144.65,20.99036405]
[1768481027680,0.64460141,144.71,144.66,14.72073957]
[1768481027880,0.71867732,144.77,144.67,14.72073957]
[1768481028082,0.71867732,144.76,144.67,14.72073957]
[1768481028283,0.71867732,144.78,144.67,18.07091096]
[1768481028578,0.7416986,144.76,144.7,14.72073957]
[1768481028977,0.05049016,144.74,144.72,0.0450041]
[1768481029882,0.81494562,144.74,144.68,14.72073957]
[1768481030577,3.35017139,144.73,144.68,14.72073957]
[1768481030779,0.80789428,144.72,144.66,158.56718428]
[1768481031282,3.35017139,144.76,144.63,15.55955428]
[1768481031283,4.15806567,144.7,144.63,15.55955428]
[1768481031987,4.15806567,144.7,144.65,0.04508415]
[1768481032175,0.04572108,144.68,144.65,15.60463843]
[1768481033582,0.04572108,144.68,144.65,0.04508415]
[1768481038782,0.97517949,144.72,144.65,15.60463843]
[1768481038982,0.97517949,144.72,144.65,15.55955428]
[1768481039789,0.97517949,144.72,144.67,0.0523612]
[1768481040680,0.05280547,144.71,144.67,0.0523612]
[1768481041591,0.05280547,144.71,144.67,15.61191548]
[1768481043690,1.07954976,144.74,144.67,15.61191548]
[1768481044186,1.17034054,144.76,144.69,15.55955428]
[1768481044790,1.17034054,144.76,144.71,0.05154691]
[1768481047786,1.29387313,144.75,144.67,15.55955428]
[1768481048894,1.29387313,144.75,144.7,0.04690524]
[1768481059101,1.43232872,144.74,144.7,0.04690524]
[1768481062599,7.65222872,144.74,144.7,0.04690524]
[1768481062800,1.51214948,144.73,144.7,0.04690524]
[1768481070911,7.73254948,144.73,144.7,0.04690524]
[1768481075109,1.74359405,144.75,144.7,0.04690524]
[1768481077216,0.04900249,144.75,144.7,15.79609482]
[1768481077415,6.26890249,144.75,144.7,17.93660013]
[1768481077814,8.00176063,144.75,144.7,15.79609482]
[1768481078312,8.00176063,144.75,144.7,0.04690524]
[1768481078714,1.74532178,144.74,144.7,0.04690524]
[1768481079813,6.2203,144.73,144.7,0.04690524]
[1768481086926,1.74532178,144.74,144.7,0.04690524]
[1768481087518,7.96522178,144.74,144.7,0.04690524]
[1768481091723,1.9052881,144.73,144.7,0.04690524]
[1768481092121,1.9052881,144.73,144.66,15.25900812]
[1768481092327,1.9052881,144.73,144.64,29.39951343]
[1768481092625,1.86886342,144.72,144.65,15.25900812]
[1768481092823,1.86886342,144.72,144.65,17.39951343]
[1768481093024,1.86886342,144.72,144.65,15.25900812]
[1768481093229,0.04829669,144.7,144.67,0.05139805]
[1768481097030,8.08956342,144.72,144.67,15.31040617]
[1768481098733,0.04370751,144.71,144.67,15.31040617]
[1768481100836,8.16875842,144.74,144.68,17.39951343]
[1768481101037,8.16875842,144.74,144.69,2.14050531]
[1768481102040,2.00172854,144.72,144.66,15.25900812]
[1768481102245,2.00172854,144.72,144.66,17.39951343]
[1768481103145,6.2203,144.73,144.68,0.05059681]
[1768481105151,0.04861379,144.72,144.68,0.05059681]
[1768481105950,6.26941379,144.72,144.68,0.05059681]
[1768481107148,6.26941379,144.72,144.68,15.30960493]
[1768481110355,6.2212,144.71,144.66,15.25900812]
[1768481111050,6.2212,144.71,144.66,17.39951343]
[1768481111250,6.2212,144.71,144.66,15.25900812]
[1768481111554,6.2212,144.71,144.67,0.04807572]
[1768481113758,6.2212,144.71,144.67,15.30708384]
[1768481114052,0.04861379,144.72,144.67,15.30708384]
[1768481117062,2.12913017,144.75,144.67,15.30708384]
[1768481117360,2.12913017,144.75,144.67,15.25900812]
[1768481117854,2.12913017,144.75,144.68,15.25900812]
[1768481118250,87.8993,144.76,144.68,15.25900812]
[1768481118251,0.04452231,144.73,144.69,15.25900812]
[1768481119459,0.04452231,144.73,144.7,0.05137535]
[1768481127463,8.45505385,144.76,144.7,16.14205661]
[1768481128659,0.05175385,144.74,144.7,16.14205661]
[1768481136076,0.05175385,144.74,144.7,0.05137535]
[1768481138082,8.59577518,144.74,144.68,16.09068126]
[1768481139282,8.59577518,144.74,144.7,0.05175073]
[1768481140173,2.37587518,144.74,144.7,0.05175073]
[1768481140377,0.05175385,144.74,144.7,16.14243199]
[1768481142279,0.05175385,144.74,144.7,22.36393199]
[1768481142584,8.56527603,144.78,144.71,16.09068126]
[1768481143480,8.56527603,144.78,144.73,0.05251828]
[1768481146983,6.2185,144.78,144.73,16.14319954]
[1768481148285,2.37885439,144.79,144.73,16.14319954]
[1768481148788,2.38398792,144.81,144.73,16.14319954]
[1768481148985,0.05020751,144.77,144.73,16.09068126]
[1768481149283,0.05020751,144.77,144.76,0.05241009]
[1768481154695,2.38398792,144.8,144.76,0.05241009]
[1768481156089,0.04858858,144.79,144.76,0.05241009]
[1768481158196,2.4617648,144.84,144.78,15.66353516]
[1768481159098,2.4617648,144.84,144.8,0.05146169]
[1768481159487,5.86022585,144.82,144.76,15.66353516]
[1768481159693,5.86022585,144.82,144.74,15.66353516]
[1768481159694,2.51935116,144.81,144.74,15.66353516]
[1768481160802,0.04401292,144.79,144.76,0.04473284]
[1768481161603,2.51935116,144.81,144.76,0.04473284]
[1768481162606,0.02697894,144.8,144.76,0.04473284]
[1768481162798,0.02697894,144.8,144.76,15.708268]
[1768481164001,0.00243053,144.8,144.76,15.708268]
[1768481164393,0.00243053,144.8,144.76,0.04473284]
[1768481164593,2.5428651,144.8,144.76,0.04473284]
[1768481164795,2.5428651,144.8,144.74,15.66353516]
[1768481166004,2.5428651,144.8,144.76,0.05000075]
[1768481169605,0.00243053,144.8,144.76,0.05000075]
[1768481170007,8.77940419,144.8,144.76,0.05000075]
[1768481171105,8.7811706,144.79,144.74,15.66353516]
[1768481171304,8.7811706,144.79,144.72,15.66353516]
[1768481171895,2.56692507,144.77,144.7,15.66353516]
[1768481172100,5.91227267,144.76,144.7,15.66353516]
[1768481172404,0.04772606,144.75,144.72,0.05092304]
[1768481172605,2.61465113,144.75,144.7,15.66353516]
[1768481173405,2.14103441,144.74,144.7,15.66353516]
[1768481173804,8.36103441,144.74,144.7,15.66353516]
[1768481174010,8.36103441,144.74,144.67,15.66353516]
[1768481174011,4.71514298,144.74,144.67,15.66353516]
[1768481174908,0.04416717,144.72,144.69,0.04593177]
[1768481179414,6.26486717,144.72,144.69,0.04593177]
[1768481180006,6.2212,144.71,144.69,0.04593177]
[1768481181015,0.04416717,144.72,144.69,0.04593177]
[1768481181405,0.04416717,144.72,144.69,16.21977804]
[1768481181810,2.14103441,144.75,144.69,16.21977804]
[1768481182616,6.2199,144.74,144.69,16.21977804]
[1768481185710,2.14103441,144.75,144.69,16.21977804]
[1768481185913,2.57555435,144.76,144.69,16.21977804]
[1768481187217,84.23990137,144.78,144.7,16.31747003]
[1768481187521,86.38093578,144.78,144.73,0.04572812]
[1768481188620,2.59990137,144.78,144.73,0.04572812]
[1768481189909,8.81810137,144.78,144.73,0.04572812]
[1768481190618,6.2182,144.78,144.73,16.36319815]
[1768481191023,4.75259826,144.79,144.73,16.36319815]
[1768481191918,10.97039826,144.79,144.73,16.36319815]
[1768481192619,8.83539607,144.78,144.73,0.04572812]
[1768481192825,2.61719607,144.75,144.69,16.31747003]
[1768481193025,4.75823048,144.74,144.67,16.31747003]
[1768481193825,4.75823048,144.74,144.69,0.0506294]
[1768481194823,2.61719607,144.74,144.69,0.0506294]
[1768481195024,4.75823048,144.74,144.69,0.0506294]
[1768481195829,2.61719607,144.74,144.69,0.0506294]
[1768481196030,8.36063441,144.75,144.7,16.31747003]
[1768481196930,8.36063441,144.75,144.69,0.0506294]
[1768481196931,10.98871195,144.75,144.69,0.0506294]
[1768481197934,0.04924611,144.73,144.69,0.0506294]
[1768481198133,0.04924611,144.73,144.69,16.36809943]
[1768481200231,10.99584935,144.77,144.69,16.36809943]
[1768481200232,8.85481494,144.77,144.69,16.36809943]
[1768481200435,10.99584935,144.77,144.69,16.36809943]
[1768481200728,8.90691374,144.76,144.69,16.36809943]
[1768481200934,2.68771374,144.75,144.69,16.36809943]
[1768481201532,0.0474259,144.73,144.69,16.36809943]
[1768481202530,6.2192,144.76,144.69,16.36809943]
[1768481202732,8.36023441,144.76,144.69,16.36809943]
[1768481203732,2.69519721,144.75,144.69,16.36809943]
[1768481204033,8.91469721,144.75,144.69,16.36809943]
[1768481206037,0.05231383,144.73,144.69,16.36809943]
[1768481214147,6.2188,144.77,144.71,16.41051701]
[1768481214949,8.99458755,144.77,144.71,16.41051701]
[1768481215452,8.99458755,144.77,144.73,0.04560376]
[1768481223041,2.77578755,144.77,144.73,0.04560376]
[1768481226754,2.79970554,144.75,144.69,16.41051701]
[1768481227843,0.04552253,144.73,144.71,0.04869326]
[1768481237670,2.79970554,144.75,144.71,0.04869326]
[1768481237974,6.2185,144.78,144.71,0.04869326]
[1768481237975,9.03864957,144.78,144.71,16.45921027]
[1768481238466,2.82014957,144.77,144.71,16.45921027]
[1768481247679,9.06668148,144.79,144.71,16.45921027]
[1768481251175,6.2182,144.78,144.71,16.45921027]
[1768481256286,6.2182,144.78,144.72,15.96785925]
[1768481258788,9.08275941,144.78,144.72,15.96785925]
[1768481258981,9.08275941,144.78,144.71,6.26969326]
[1768481258982,2.86455941,144.76,144.71,0.04869326]
[1768481259178,2.86455941,144.76,144.7,15.96785925]
[1768481259385,2.86455941,144.76,144.72,0.04953449]
[1768481260789,9.08355941,144.76,144.72,0.04953449]
[1768481264085,3.34467767,144.77,144.68,15.96785925]
[1768481264086,2.87105318,144.74,144.68,15.96785925]
[1768481265083,0.04710449,144.72,144.7,0.04541042]
[1768481287115,2.88181342,144.72,144.66,15.71124192]
[1768481287818,0.04710449,144.72,144.66,15.71124192]
[1768481288314,6.2196,144.75,144.69,15.71124192]
[1768481288719,9.05644799,144.75,144.69,15.71124192]
[1768481289308,2.83684799,144.75,144.69,15.71124192]
[1768481289514,2.83684799,144.75,144.71,0.04577852]
[1768481289810,0.05161944,144.74,144.71,0.04577852]
[1768481292716,2.89260009,144.74,144.68,15.71124192]
[1768481293819,9.11260009,144.74,144.7,0.04448048]
[1768481295318,9.06327646,144.73,144.7,0.04448048]
[1768481295518,9.06327646,144.73,144.68,15.71124192]
[1768481295519,2.84297646,144.73,144.68,15.71124192]
[1768481296717,2.84297646,144.73,144.69,0.04421756]
[1768481296916,6.2209,144.72,144.69,0.04421756]
[1768481304329,9.06327646,144.73,144.69,0.04421756]
[1768481317125,9.10434452,144.72,144.69,0.04421756]
[1768481317325,9.10434452,144.72,144.65,22.03395715]
[1768481317727,9.10434452,144.72,144.66,15.81035715]
[1768481318428,9.10434452,144.72,144.68,0.04959517]
[1768481320335,6.2203,144.73,144.68,15.85995232]
[1768481321733,0.0498154,144.72,144.68,15.85995232]
[1768481325937,0.0498154,144.72,144.68,22.08235232]
[1768481326241,2.88707855,144.75,144.69,15.81035715]
[1768481327142,0.04977092,144.73,144.69,15.81035715]
[1768481329744,0.04977092,144.73,144.69,22.03235715]
[1768481334041,0.04977092,144.73,144.7,6.2215]
[1768481337040,0.04977092,144.73,144.69,15.81035715]
[1768481338145,2.88707855,144.75,144.7,15.70588706]
[1768481338636,2.14103194,144.76,144.7,15.70588706]
[1768481339248,0.05097862,144.74,144.72,0.04720905]
[1768481340549,2.90027693,144.77,144.72,15.75309611]
[1768481341142,2.95238939,144.76,144.72,0.04720905]
[1768481341339,5.04621228,144.74,144.68,15.70588706]
[1768481341543,2.90518034,144.73,144.68,15.70588706]
[1768481342351,0.04526456,144.72,144.69,0.04922239]
[1768481342948,0.04526456,144.72,144.63,95.80103194]
[1768481342949,2.90628829,144.71,144.63,15.70588706]
[1768481344052,9.12758829,144.71,144.66,0.04539573]
[1768481345048,9.12758829,144.71,144.66,15.75128279]
[1768481345251,9.12787092,144.73,144.66,15.75128279]
[1768481345549,9.12787092,144.73,144.68,0.04751935]
[1768481345750,11.26890286,144.73,144.68,0.04751935]
[1768481345956,0.05291677,144.72,144.68,0.04751935]
[1768481346354,0.05291677,144.72,144.68,15.75340641]
[1768481359153,2.14103194,144.74,144.68,15.75340641]
[1768481359354,9.12240373,144.75,144.68,15.75340641]
[1768481362263,6.2198,144.75,144.68,15.75340641]
[1768481363758,6.2198,144.75,144.69,17.0388217]
[1768481365862,6.219,144.76,144.69,17.0388217]
[1768481366860,6.219,144.76,144.69,23.2608217]
[1768481367062,6.219,144.76,144.71,0.04854995]
[1768481368068,9.14837753,144.76,144.71,0.04854995]
[1768481370471,9.14813404,144.75,144.71,0.04854995]
[1768481376476,0.02942945,144.74,144.71,0.04854995]
[1768481386284,6.24932945,144.74,144.71,0.04854995]
[1768481406713,6.2204,144.73,144.68,16.0537322]
[1768481406910,9.1340411,144.73,144.68,16.0537322]
[1768481407707,6.2208,144.72,144.68,16.0537322]
[1768481407909,2.91333013,144.72,144.65,16.0537322]
[1768481408304,9.08274604,144.7,144.65,16.0537322]
[1768481408509,9.08274604,144.7,144.63,22.2783322]
[1768481408905,9.08274604,144.7,144.64,16.0537322]
[1768481409110,9.08274604,144.7,144.65,0.04990586]
[1768481415020,2.86114604,144.7,144.65,16.10363806]
[1768481415412,2.86114604,144.7,144.65,0.04990586]
[1768481416512,0.04369841,144.69,144.65,0.04990586]
[1768481418726,2.90400867,144.69,144.65,0.04990586]
[1768481422118,6.2213,144.71,144.65,17.05636247]
[1768481422426,2.86440552,144.73,144.65,19.19863857]
[1768481422611,2.90810393,144.71,144.65,17.05636247]
[1768481422812,2.90810393,144.71,144.65,17.00645661]
[1768481423424,0.04995651,144.69,144.67,0.04877037]
[1768481425721,0.04995651,144.69,144.63,16.23147941]
[1768481426825,0.04995651,144.69,144.64,16.23147941]
[1768481427029,0.04995651,144.69,144.65,16.27655593]
[1768481433829,6.2212,144.71,144.66,16.23147941]
[1768481434828,0.04451072,144.7,144.66,16.23147941]
[1768481436330,6.2207,144.73,144.67,16.23147941]
[1768481437531,6.2207,144.73,144.69,0.05271069]
[1768481438935,5.0548472,144.74,144.69,0.05271069]
[1768481440333,0.04076822,144.73,144.69,0.05271069]
[1768481441431,0.04076822,144.73,144.69,16.2841901]
[1768481441636,2.95422961,144.75,144.69,16.2841901]
[1768481443533,2.95422961,144.75,144.69,22.5061901]
[1768481444633,5.09650571,144.75,144.69,22.5061901]
[1768481445931,2.95260514,144.74,144.69,22.5061901]
[1768481446130,2.95260514,144.74,144.69,6.27471069]
[1768481446336,2.95260514,144.74,144.69,0.05271069]
[1768481452942,5.08960081,144.73,144.69,0.05271069]
[1768481453242,2.94732471,144.72,144.66,16.113583]
[1768481454341,0.0499671,144.7,144.68,0.05240981]
[1768481460945,2.94732471,144.72,144.68,0.05240981]
[1768481464545,8.3625761,144.73,144.68,0.05240981]
[1768481465044,6.2203,144.73,144.68,16.16599281]
[1768481465351,5.08662877,144.74,144.68,16.16599281]
[1768481466440,11.30652877,144.74,144.68,16.16599281]
[1768481469847,9.16425267,144.74,144.68,16.16599281]
[1768481470655,6.2199,144.74,144.68,16.16599281]
[1768481471157,11.30435997,144.76,144.69,16.113583]
[1768481471456,11.30435997,144.76,144.71,0.04864949]
[1768481473952,2.94288387,144.76,144.71,0.04864949]
[1768481474155,5.08515997,144.76,144.71,0.04864949]
[1768481478062,2.1422761,144.76,144.71,16.16223249]
[1768481478853,2.1422761,144.76,144.71,22.38333249]
[1768481479062,2.94086302,144.77,144.71,22.38333249]
[1768481480052,5.08313912,144.77,144.71,22.38333249]
[1768481481659,2.94086302,144.77,144.71,22.38333249]
[1768481481861,5.08313912,144.77,144.71,22.38333249]
[1768481482858,5.08313912,144.77,144.72,6.2206]
[1768481483061,2.94086302,144.77,144.71,16.16223249]
[1768481483958,2.94086302,144.77,144.73,6.2202]
[1768481484358,6.302e-05,144.77,144.71,16.16223249]
[1768481484773,6.302e-05,144.77,144.73,6.2203]
[1768481486361,6.302e-05,144.77,144.71,16.16223249]
[1768481486866,6.302e-05,144.77,144.74,6.2197]
[1768481487258,6.302e-05,144.77,144.74,6.26738497]
[1768481490863,6.302e-05,144.77,144.75,6.2194]
[1768481491262,0.06284234,144.79,144.75,6.2194]
[1768481492367,0.06284234,144.79,144.76,6.2189]
[1768481492967,0.06284234,144.79,144.77,6.2186]
[1768481493170,0.06284234,144.79,144.74,17.00087751]
[1768481494865,1.20275805,144.8,144.74,17.00087751]
[1768481495061,0.16852372,144.82,144.75,16.95319254]
[1768481495467,0.16852372,144.82,144.77,0.04449336]
[1768481495771,0.16852372,144.82,144.78,6.2181]
[1768481500574,3.3436722,144.83,144.79,6.2176]
[1768481501469,3.66183748,144.83,144.79,6.2176]
[1768481506479,1.20228019,144.84,144.79,23.17079254]
[1768481506865,1.20228019,144.84,144.8,0.04572928]
[1768481507070,1.66006598,144.84,144.79,23.17079254]
[1768481508179,0.04702688,144.83,144.8,0.04852132]
[1768481514069,0.00542291,144.83,144.8,0.04852132]
[1768481515685,0.00542291,144.83,144.8,16.56553106]
[1768481521282,6.95306673,144.88,144.8,16.56553106]
[1768481521788,0.73916673,144.88,144.8,16.56553106]
[1768481522084,1.20192723,144.89,144.8,16.56553106]
[1768481522296,1.20192723,144.89,144.8,16.51700974]
[1768481522477,6.2139,144.88,144.83,16.56121475]
[1768481522682,1.20192723,144.89,144.83,16.56121475]
[1768481523288,1.99744773,144.89,144.83,16.56121475]
[1768481524487,1.20192723,144.89,144.83,16.56121475]
[1768481527180,81.62,144.9,144.83,16.56121475]
[1768481528886,84.9636722,144.9,144.83,16.56121475]
[1768481530695,3.3436722,144.9,144.83,16.56121475]
[1768481531597,82.80174045,144.91,144.84,16.51700974]
[1768481531997,82.80174045,144.91,144.86,16.56478438]
[1768481532396,1.20174045,144.91,144.86,16.56478438]
[1768481532596,20.58956237,144.94,144.86,16.56478438]
[1768481532796,3.3436722,144.92,144.86,16.51700974]
[1768481533100,20.58956237,144.92,144.86,16.51700974]
[1768481533298,20.58956237,144.9,144.82,16.51700974]
[1768481533495,20.58956237,144.9,144.83,16.51700974]
[1768481534199,20.58956237,144.9,144.85,0.04950559]
[1768481534400,0.04736898,144.88,144.85,0.04950559]
[1768481538093,0.04736898,144.88,144.85,16.56651533]
[1768481538801,0.00021545,144.88,144.85,22.78161533]
[1768481539200,0.00021545,144.88,144.86,16.51700974]
[1768481540795,0.00021545,144.88,144.85,6.26460559]
[1768481541201,0.00021545,144.88,144.86,16.14934748]
[1768481549904,0.00021545,144.88,144.85,14.56105067]
[1768481552402,1.20167821,144.93,144.86,14.51154508]
[1768481552611,1.20167821,144.93,144.86,16.6477748]
[1768481552909,1.20167821,144.93,144.86,14.51154508]
[1768481553502,1.20167821,144.93,144.88,14.56260456]
[1768481553908,7.41347821,144.93,144.88,14.56260456]
[1768481554901,9.54970793,144.93,144.88,14.56260456]
[1768481555701,7.41347821,144.93,144.88,14.56260456]
[1768481555913,2.13622972,144.94,144.88,14.56260456]
[1768481557817,6.2117,144.93,144.88,14.56260456]
[1768481564414,10.68527117,144.95,144.88,14.56260456]
[1768481564620,2.13622972,144.94,144.88,14.56260456]
[1768481565515,6.2117,144.93,144.88,14.56260456]
[1768481565722,8.34792972,144.93,144.88,14.56260456]
[1768481566524,6.2117,144.93,144.88,14.56260456]
[1768481566716,8.34792972,144.93,144.88,14.56260456]
[1768481568120,6.2117,144.93,144.88,14.56260456]
[1768481568322,8.34792972,144.93,144.88,14.56260456]
[1768481568515,6.2117,144.93,144.88,14.56260456]
[1768481568715,8.34792972,144.93,144.88,14.56260456]
[1768481570223,6.2117,144.93,144.88,14.56260456]
[1768481570413,8.34792972,144.93,144.88,14.56260456]
[1768481571618,6.2117,144.93,144.88,14.56260456]
[1768481573523,2.13622972,144.92,144.88,14.56260456]
[1768481573723,6.2117,144.93,144.88,14.56260456]
[1768481573924,8.34792972,144.93,144.88,14.56260456]
[1768481574419,3.33763827,144.95,144.88,14.56260456]
[1768481575518,6.2113,144.94,144.88,14.56260456]
[1768481576024,2.13622972,144.93,144.88,14.56260456]
[1768481576624,6.2121,144.92,144.88,14.56260456]
[1768481577016,2.13622972,144.93,144.88,14.56260456]
[1768481577421,1.20140855,144.95,144.88,14.56260456]
[1768481577621,2.13622972,144.94,144.88,14.56260456]
[1768481578327,6.2117,144.93,144.88,14.56260456]
[1768481581321,1.20140855,144.95,144.88,14.56260456]
[1768481581522,2.13622972,144.96,144.88,14.56260456]
[1768481582121,11.44845575,144.96,144.88,14.56260456]
[1768481582427,2.13622972,144.95,144.88,14.56260456]
[1768481582924,6.2112,144.95,144.88,14.56260456]
[1768481584828,9.31222603,144.96,144.88,14.56260456]
[1768481585021,88.9716256,144.97,144.89,9.63639755]
[1768481585222,91.10785532,144.97,144.89,9.63639755]
[1768481585426,91.10785532,144.97,144.92,9.6817042]
[1768481586018,6.2105,144.96,144.92,0.04530665]
[1768481586218,2.13622972,144.95,144.9,9.63639755]
[1768481587224,2.13622972,144.95,144.91,0.04599022]
[1768481587426,9.31222603,144.96,144.91,0.04599022]
[1768481587625,6.211,144.95,144.91,0.04599022]
[1768481587828,2.13622972,144.96,144.91,9.45578628]
[1768481588533,1.2013256,144.97,144.91,9.45578628]
[1768481588733,3.33755532,144.97,144.91,9.45578628]
[1768481588933,7.4116256,144.97,144.91,9.45578628]
[1768481589126,9.54785532,144.97,144.91,9.45578628]
[1768481590229,7.4116256,144.97,144.91,9.45578628]
[1768481590425,9.54785532,144.97,144.91,9.45578628]
[1768481591339,2.13622972,144.96,144.91,9.45578628]
[1768481591532,0.04530665,144.95,144.91,9.45578628]
[1768481598254,81.56,144.98,144.91,9.45578628]
[1768481598757,2.13622972,144.99,144.91,9.45578628]
[1768481599258,2.13622972,144.99,144.93,5.83155669]
[1768481599557,2.13622972,144.99,144.95,0.05302315]
[1768481600159,2.13622972,144.99,144.95,5.58127178]
[1768481601256,82.76093176,145.01,144.95,5.58127178]
[1768481601457,2.13622972,144.99,144.95,5.58127178]
[1768481601659,82.76093176,145.01,144.95,5.58127178]
[1768481601956,2.13622972,145.0,144.95,5.58127178]
[1768481602959,81.56,145.01,144.95,5.58127178]
[1768481603159,2.13622972,145.0,144.95,5.58127178]
[1768481605460,84.89352614,145.01,144.95,5.58127178]
[1768481605849,3.90883391,145.0,144.95,0.05302315]
[1768481606048,3.33352614,144.99,144.93,3.22552731]
[1768481606462,82.76084888,145.01,144.86,8.61898806]
[1768481606463,3.33352614,144.97,144.89,3.22552731]
[1768481607358,3.33352614,144.97,144.92,0.04948844]
[1768481607757,6.2105,144.96,144.92,0.04948844]
[1768481608457,6.2098,144.98,144.92,2.73132228]
[1768481609156,86.66968279,145.01,144.92,2.73132228]
[1768481609358,6.2091,145.0,144.92,2.68183384]
[1768481610062,6.2091,145.0,144.95,0.04673443]
[1768481610661,6.2092,144.99,144.95,0.04673443]
[1768481611659,6.2096,144.98,144.95,0.04673443]
[1768481611966,3.90883391,145.0,144.95,0.04673443]
[1768481619161,3.90883391,145.02,144.95,0.04673443]
[1768481619358,7.24236005,145.02,144.95,0.04673443]
[1768481620267,3.90883391,145.01,144.95,0.04673443]
[1768481621968,7.24236005,145.01,144.95,0.04673443]
[1768481623673,3.90883391,145.0,144.95,0.04673443]
[1768481628574,3.90883391,145.0,144.95,6.25743443]
[1768481628773,3.33352614,145.02,144.95,6.25743443]
[1768481629073,3.90883391,145.01,144.95,6.25743443]
[1768481629271,3.90883391,145.01,144.96,6.2103]
[1768481631875,3.90883391,145.01,144.97,6.2099]
[1768481633288,1.20084888,145.03,144.95,0.04673443]
[1768481633289,81.54,145.06,144.98,6.2095]
[1768481633475,3.33352614,145.04,144.98,6.2095]
[1768481633673,3.33352614,145.04,145.0,0.04792384]
[1768481633976,3.33352614,145.04,144.96,2.8432232]
[1768481634863,3.33352614,145.04,144.99,6.2089]
[1768481635069,0.05079587,145.03,145.0,0.05306755]
[1768481635274,3.3279307,145.03,144.96,2.8432232]
[1768481635781,3.3279307,145.03,144.99,6.2089]
[1768481635983,3.3279307,145.03,144.96,2.8432232]
[1768481636281,3.3279307,145.03,144.98,0.05144577]
[1768481636781,3.3279307,145.03,144.99,6.2089]
[1768481637882,3.3279307,145.03,144.98,0.05144577]
[1768481645588,3.3279307,145.03,144.98,2.89466897]
[1768481645789,0.05079587,145.03,144.98,2.89466897]
[1768481648790,0.05079587,145.03,144.98,0.05144577]
[1768481648791,3.27713483,145.02,144.98,0.05144577]
[1768481649390,112.49070245,145.08,144.99,2.79242733]
[1768481649391,9.48313483,145.07,144.99,2.79242733]
[1768481649885,3.27713483,145.07,145.0,2.79242733]
[1768481650277,15.95950245,145.08,145.0,2.79242733]
[1768481650690,15.95950245,145.08,145.03,2.84080075]
[1768481652395,15.95950245,145.08,145.03,0.04837342]
[1768481654992,3.27713483,145.07,145.03,0.04837342]
[1768481660000,15.95950245,145.08,145.03,0.04837342]
[1768481660499,19.23663728,145.08,145.03,0.04837342]
[1768481661703,19.23663728,145.08,145.03,6.25577342]
[1768481667708,3.20133296,145.07,145.03,6.25577342]
[1768481669896,3.20133296,145.07,145.03,0.04837342]
[1768481670097,3.20133296,145.07,145.04,6.2067]
[1768481670298,3.20133296,145.07,145.03,0.04837342]
[1768481670705,3.20133296,145.06,144.98,2.73751214]
[1768481670902,5.33207403,145.05,144.98,2.73751214]
[1768481671105,3.20133296,145.04,144.98,2.73751214]
[1768481671409,3.20133296,145.04,144.96,328.81615435]
[1768481671601,3.296e-05,145.04,145.01,6.2082]
[1768481672498,3.296e-05,145.04,144.99,6.25537868]
[1768481672499,2.17961955,145.04,144.99,6.25537868]
[1768481673104,2.17961955,145.04,145.0,6.2086]